[Event "Early-Titled-Tuesday-Blitz-September-12-2023"]
[Site "Chess.com"]
[Date "2023.09.12"]
[Round "3"]
[White "TatjanaVasilevich"]
[Black "pasteta13"]
[Result "1-0"]
[WhiteElo "2575"]
[BlackElo "2403"]
[TimeControl "180+1"]
[EndTime "8:28:31 PDT"]
[Termination "TatjanaVasilevich won on time"]

1. d4 {[%clk 0:03:00.9]} 1... Nf6 {[%clk 0:02:56.8]} 2. c4 {[%clk 0:03:01.2]}
2... e6 {[%clk 0:02:57.1]} 3. Nc3 {[%clk 0:02:58.6]} 3... Bb4 {[%clk 0:02:57.7]}
4. Qc2 {[%clk 0:02:57.3]} 4... d5 {[%clk 0:02:55.4]} 5. Bg5 {[%clk 0:02:55.2]}
5... h6 {[%clk 0:02:55]} 6. Bxf6 {[%clk 0:02:55]} 6... Qxf6 {[%clk 0:02:54.7]}
7. e3 {[%clk 0:02:55.6]} 7... O-O {[%clk 0:02:54.1]} 8. a3 {[%clk 0:02:55.1]}
8... Bxc3+ {[%clk 0:02:50.9]} 9. Qxc3 {[%clk 0:02:55.3]} 9... c6 {[%clk
0:02:46.8]} 10. c5 {[%clk 0:02:53.5]} 10... Nd7 {[%clk 0:02:43.4]} 11. f4 {[%clk
0:02:53.4]} 11... b6 {[%clk 0:02:37.4]} 12. b4 {[%clk 0:02:53]} 12... a5 {[%clk
0:02:36.1]} 13. Rb1 {[%clk 0:02:52.7]} 13... axb4 {[%clk 0:02:36]} 14. axb4
{[%clk 0:02:52.9]} 14... Ba6 {[%clk 0:02:32.6]} 15. Bxa6 {[%clk 0:02:51]} 15...
Rxa6 {[%clk 0:02:32.7]} 16. b5 {[%clk 0:02:50]} 16... cxb5 {[%clk 0:02:29.3]}
17. c6 {[%clk 0:02:49.6]} 17... Rc8 {[%clk 0:02:24.8]} 18. Rc1 {[%clk
0:02:37.9]} 18... Ra4 {[%clk 0:02:17.7]} 19. Qb3 {[%clk 0:02:16]} 19... Rc4
{[%clk 0:02:16.1]} 20. Rxc4 {[%clk 0:02:16]} 20... bxc4 {[%clk 0:02:03.7]} 21.
cxd7 {[%clk 0:02:15.8]} 21... Rc7 {[%clk 0:01:59.4]} 22. Qxb6 {[%clk 0:02:11.6]}
22... Rxd7 {[%clk 0:01:59.7]} 23. Ne2 {[%clk 0:02:11.7]} 23... Qe7 {[%clk
0:01:40.4]} 24. O-O {[%clk 0:01:38.7]} 24... Rb7 {[%clk 0:01:39.3]} 25. Qa6
{[%clk 0:01:37.2]} 25... Rb2 {[%clk 0:01:37.4]} 26. Ng3 {[%clk 0:01:32.1]} 26...
Qb4 {[%clk 0:01:28.5]} 27. Kh1 {[%clk 0:01:16.1]} 27... Qd2 {[%clk 0:01:02.3]}
28. Rg1 {[%clk 0:01:16.1]} 28... Qxe3 {[%clk 0:01:02.5]} 29. Qc8+ {[%clk
0:01:15.7]} 29... Kh7 {[%clk 0:01:01.7]} 30. Qf8 {[%clk 0:01:12.9]} 30... Qxf4
{[%clk 0:00:58.6]} 31. Nh5 {[%clk 0:01:12.9]} 31... Qg5 {[%clk 0:00:53.3]} 32.
Qxf7 {[%clk 0:01:11.4]} 32... c3 {[%clk 0:00:42.7]} 33. Qf3 {[%clk 0:00:41.3]}
33... c2 {[%clk 0:00:36.7]} 34. Nf4 {[%clk 0:00:41.5]} 34... Qf5 {[%clk
0:00:28.5]} 35. Nd3 {[%clk 0:00:36.1]} 35... Rb3 {[%clk 0:00:04.7]} 36. Qxf5+
{[%clk 0:00:32.7]} 36... exf5 {[%clk 0:00:05.1]} 37. Nc1 {[%clk 0:00:33.2]}
37... Rb4 {[%clk 0:00:05.6]} 38. Ne2 {[%clk 0:00:33.5]} 38... g5 {[%clk
0:00:02.6]} 39. Rc1 {[%clk 0:00:33.1]} 39... Rc4 {[%clk 0:00:02.7]} 40. Kg1
{[%clk 0:00:33.3]} 40... f4 {[%clk 0:00:03.3]} 41. Kf2 {[%clk 0:00:33.9]} 41...
Kg6 {[%clk 0:00:04]} 42. Kf3 {[%clk 0:00:34.4]} 42... Kf5 {[%clk 0:00:04.6]} 43.
g4+ {[%clk 0:00:35]} 43... fxg3 {[%clk 0:00:04.9]} 44. Nxg3+ {[%clk 0:00:35.4]}
44... Kg6 {[%clk 0:00:05.4]} 45. Ne2 {[%clk 0:00:36.1]} 45... Kf5 {[%clk
0:00:05.6]} 46. h3 {[%clk 0:00:34]} 46... h5 {[%clk 0:00:06.2]} 47. Ng3+ {[%clk
0:00:34.3]} 47... Kg6 {[%clk 0:00:06.3]} 48. Ne2 {[%clk 0:00:34.6]} 48... Kf5
{[%clk 0:00:06.6]} 49. Ke3 {[%clk 0:00:35.1]} 49... g4 {[%clk 0:00:04.7]} 50. h4
{[%clk 0:00:35.3]} 50... Rc6 {[%clk 0:00:03.4]} 51. Kd3 {[%clk 0:00:34.8]} 51...
Rc8 {[%clk 0:00:02.5]} 52. Rf1+ {[%clk 0:00:30.9]} 52... Kg6 {[%clk 0:00:01.3]}
53. Nf4+ {[%clk 0:00:31.1]} 53... Kh6 {[%clk 0:00:01.6]} 54. Rc1 {[%clk
0:00:31]} 1-0

[Event "Early-Titled-Tuesday-Blitz-September-12-2023"]
[Site "Chess.com"]
[Date "2023.09.12"]
[Round "3"]
[White "Rurep26"]
[Black "TERMINATOR_PC"]
[Result "0-1"]
[WhiteElo "2797"]
[BlackElo "2522"]
[TimeControl "180+1"]
[EndTime "8:28:33 PDT"]
[Termination "TERMINATOR_PC won by resignation"]

1. d4 {[%clk 0:03:00.9]} 1... Nf6 {[%clk 0:02:59.9]} 2. Bf4 {[%clk 0:03:00.3]}
2... d5 {[%clk 0:02:58.9]} 3. e3 {[%clk 0:03:00.4]} 3... c5 {[%clk 0:02:59.2]}
4. Nc3 {[%clk 0:03:00.7]} 4... cxd4 {[%clk 0:02:57.9]} 5. exd4 {[%clk
0:03:00.7]} 5... a6 {[%clk 0:02:58.2]} 6. Nf3 {[%clk 0:03:00.1]} 6... Bg4 {[%clk
0:02:58.2]} 7. Be2 {[%clk 0:03:00.1]} 7... Bxf3 {[%clk 0:02:57.1]} 8. Bxf3
{[%clk 0:02:59.9]} 8... Nc6 {[%clk 0:02:57.6]} 9. O-O {[%clk 0:02:57.7]} 9... e6
{[%clk 0:02:58]} 10. Re1 {[%clk 0:02:58.1]} 10... Bb4 {[%clk 0:02:47.9]} 11. Re3
{[%clk 0:02:54.5]} 11... O-O {[%clk 0:02:45.5]} 12. Ne2 {[%clk 0:02:50]} 12...
Rc8 {[%clk 0:02:43.9]} 13. c3 {[%clk 0:02:37.2]} 13... Bd6 {[%clk 0:02:43.9]}
14. Qb3 {[%clk 0:02:37]} 14... Na5 {[%clk 0:02:38.8]} 15. Qc2 {[%clk 0:02:28.7]}
15... Qb6 {[%clk 0:02:22.7]} 16. Bxd6 {[%clk 0:02:19.6]} 16... Qxd6 {[%clk
0:02:22.4]} 17. Ng3 {[%clk 0:02:19.4]} 17... b5 {[%clk 0:02:10.1]} 18. Be2
{[%clk 0:02:16.7]} 18... Nc6 {[%clk 0:02:02.9]} 19. Qd2 {[%clk 0:02:11.4]} 19...
Rb8 {[%clk 0:02:01.9]} 20. a4 {[%clk 0:02:08.6]} 20... Na5 {[%clk 0:02:01.9]}
21. Qd1 {[%clk 0:01:58.1]} 21... Nc4 {[%clk 0:01:59.6]} 22. Bxc4 {[%clk
0:01:51.8]} 22... bxc4 {[%clk 0:02:00.2]} 23. Ra2 {[%clk 0:01:48.9]} 23... Rb7
{[%clk 0:01:56.5]} 24. Qf3 {[%clk 0:01:44.5]} 24... Rfb8 {[%clk 0:01:50.9]} 25.
Re2 {[%clk 0:01:44.7]} 25... Rb6 {[%clk 0:01:35.3]} 26. h4 {[%clk 0:01:37.4]}
26... h6 {[%clk 0:01:30.7]} 27. h5 {[%clk 0:01:30.6]} 27... Rb3 {[%clk
0:01:30.1]} 28. Rc2 {[%clk 0:01:28.3]} 28... R8b6 {[%clk 0:01:27.8]} 29. Qe3
{[%clk 0:01:21.2]} 29... Qb8 {[%clk 0:01:25.5]} 30. Qc1 {[%clk 0:01:15.8]} 30...
a5 {[%clk 0:01:24.5]} 31. Nf1 {[%clk 0:01:13.3]} 31... Rb7 {[%clk 0:01:20]} 32.
Ng3 {[%clk 0:01:11.3]} 32... Kf8 {[%clk 0:01:18.6]} 33. Re2 {[%clk 0:01:10.2]}
33... Kg8 {[%clk 0:00:55.5]} 34. f4 {[%clk 0:01:06.4]} 34... Ne8 {[%clk
0:00:48]} 35. Kf2 {[%clk 0:00:54.8]} 35... Qd8 {[%clk 0:00:46]} 36. f5 {[%clk
0:00:46.8]} 36... Qh4 {[%clk 0:00:45.4]} 37. fxe6 {[%clk 0:00:30.9]} 37... Nd6
{[%clk 0:00:31.5]} 38. e7 {[%clk 0:00:30.9]} 38... Rxe7 {[%clk 0:00:31]} 39.
Rxe7 {[%clk 0:00:29.7]} 39... Qxe7 {[%clk 0:00:31.9]} 40. Qf4 {[%clk 0:00:28.4]}
40... Rb6 {[%clk 0:00:29.5]} 41. Kg1 {[%clk 0:00:25]} 41... Qe1+ {[%clk
0:00:22.3]} 42. Kh2 {[%clk 0:00:24.6]} 42... Qb1 {[%clk 0:00:22.3]} 43. Qe5
{[%clk 0:00:05.6]} 43... Qxa2 {[%clk 0:00:22]} 44. Qe7 {[%clk 0:00:05.4]} 44...
Qxb2 {[%clk 0:00:19.2]} 45. Qd8+ {[%clk 0:00:03.6]} 45... Kh7 {[%clk 0:00:19.4]}
46. Qd7 {[%clk 0:00:03.6]} 46... Qxc3 {[%clk 0:00:16.3]} 0-1

[Event "Early-Titled-Tuesday-Blitz-September-12-2023"]
[Site "Chess.com"]
[Date "2023.09.12"]
[Round "3"]
[White "Daniel_Salinas"]
[Black "ChainedDowntohell"]
[Result "1-0"]
[WhiteElo "2365"]
[BlackElo "2534"]
[TimeControl "180+1"]
[EndTime "8:28:34 PDT"]
[Termination "Daniel_Salinas won by resignation"]

1. e4 {[%clk 0:02:55.6]} 1... c5 {[%clk 0:02:59.6]} 2. Nf3 {[%clk 0:02:54.5]}
2... e6 {[%clk 0:02:57.7]} 3. b3 {[%clk 0:02:54.5]} 3... b6 {[%clk 0:02:55.6]}
4. c4 {[%clk 0:02:51.1]} 4... Bb7 {[%clk 0:02:50.8]} 5. Nc3 {[%clk 0:02:51]}
5... Nc6 {[%clk 0:02:44.8]} 6. g3 {[%clk 0:02:44.6]} 6... Nge7 {[%clk
0:02:27.6]} 7. Bg2 {[%clk 0:02:44.1]} 7... Nd4 {[%clk 0:02:22.1]} 8. O-O {[%clk
0:02:41.8]} 8... Nec6 {[%clk 0:02:20.1]} 9. d3 {[%clk 0:02:32.7]} 9... Be7
{[%clk 0:02:19.1]} 10. Ne1 {[%clk 0:02:21.5]} 10... O-O {[%clk 0:02:15.1]} 11.
f4 {[%clk 0:02:17.1]} 11... d6 {[%clk 0:02:08.3]} 12. Bb2 {[%clk 0:02:01.9]}
12... a6 {[%clk 0:02:06.7]} 13. g4 {[%clk 0:01:56.2]} 13... b5 {[%clk 0:01:57]}
14. g5 {[%clk 0:01:47.7]} 14... b4 {[%clk 0:01:33.3]} 15. Na4 {[%clk 0:01:46.9]}
15... e5 {[%clk 0:01:30.6]} 16. h4 {[%clk 0:01:33.4]} 16... exf4 {[%clk
0:01:27.6]} 17. Rxf4 {[%clk 0:01:34.3]} 17... f6 {[%clk 0:01:27.9]} 18. g6
{[%clk 0:00:45.5]} 18... hxg6 {[%clk 0:01:26.6]} 19. Nc2 {[%clk 0:00:37.3]}
19... f5 {[%clk 0:01:10.6]} 20. Nxd4 {[%clk 0:00:28.9]} 20... Nxd4 {[%clk
0:01:10]} 21. Bxd4 {[%clk 0:00:27.6]} 21... cxd4 {[%clk 0:01:10.3]} 22. exf5
{[%clk 0:00:17.7]} 22... Bxg2 {[%clk 0:01:04.6]} 23. Kxg2 {[%clk 0:00:18.6]}
23... Bxh4 {[%clk 0:00:54]} 24. Qg4 {[%clk 0:00:15.7]} 24... Qg5 {[%clk
0:00:44]} 25. Kh3 {[%clk 0:00:15.7]} 25... Qxg4+ {[%clk 0:00:38.8]} 26. Kxg4
{[%clk 0:00:16.6]} 26... Bf6 {[%clk 0:00:34]} 27. fxg6 {[%clk 0:00:15.9]} 27...
Be5 {[%clk 0:00:34.6]} 28. Rf5 {[%clk 0:00:10.8]} 28... Rxf5 {[%clk 0:00:26]}
29. Kxf5 {[%clk 0:00:11.7]} 29... Rf8+ {[%clk 0:00:24.4]} 30. Ke4 {[%clk
0:00:12.4]} 30... Rf6 {[%clk 0:00:19.3]} 31. c5 {[%clk 0:00:11.3]} 31... Rxg6
{[%clk 0:00:09.6]} 32. c6 {[%clk 0:00:11.5]} 32... Re6 {[%clk 0:00:08.6]} 33.
Kd5 {[%clk 0:00:10.1]} 33... Re7 {[%clk 0:00:07.5]} 34. Nb6 {[%clk 0:00:08.8]}
34... g5 {[%clk 0:00:05.8]} 35. Rg1 {[%clk 0:00:08.5]} 35... Bf4 {[%clk
0:00:04.6]} 36. Nd7 {[%clk 0:00:07.3]} 36... Kf7 {[%clk 0:00:03]} 37. c7 {[%clk
0:00:05.4]} 37... Re8 {[%clk 0:00:01.8]} 38. Nb6 {[%clk 0:00:06.1]} 38... Kf6
{[%clk 0:00:01.7]} 39. c8=Q {[%clk 0:00:06.4]} 39... Rxc8 {[%clk 0:00:02]} 40.
Nxc8 {[%clk 0:00:07.3]} 40... Kf5 {[%clk 0:00:01.2]} 41. Nxd6+ {[%clk
0:00:08.2]} 41... Kg6 {[%clk 0:00:01.6]} 42. Ne4 {[%clk 0:00:08.3]} 42... Kf5
{[%clk 0:00:02]} 43. Kxd4 {[%clk 0:00:08.6]} 43... g4 {[%clk 0:00:02.1]} 44. Nf2
{[%clk 0:00:06.7]} 44... g3 {[%clk 0:00:01.8]} 45. Ne4 {[%clk 0:00:07.2]} 45...
Kg4 {[%clk 0:00:01.6]} 46. Nxg3 {[%clk 0:00:07]} 46... Bxg3 {[%clk 0:00:02.1]}
47. Kc4 {[%clk 0:00:07.2]} 47... Kf3 {[%clk 0:00:02.2]} 48. Rxg3+ {[%clk
0:00:08.1]} 48... Kxg3 {[%clk 0:00:03.1]} 49. Kxb4 {[%clk 0:00:08.1]} 1-0

[Event "Early-Titled-Tuesday-Blitz-September-12-2023"]
[Site "Chess.com"]
[Date "2023.09.12"]
[Round "3"]
[White "FairChess_on_YouTube"]
[Black "Abund"]
[Result "1-0"]
[WhiteElo "3041"]
[BlackElo "2749"]
[TimeControl "180+1"]
[EndTime "8:28:35 PDT"]
[Termination "FairChess_on_YouTube won by resignation"]

1. d4 {[%clk 0:02:59.3]} 1... Nf6 {[%clk 0:03:00.5]} 2. c4 {[%clk 0:02:59]} 2...
e6 {[%clk 0:03:01.2]} 3. Nf3 {[%clk 0:02:57.2]} 3... d5 {[%clk 0:03:01.3]} 4.
Bg5 {[%clk 0:02:57.3]} 4... dxc4 {[%clk 0:02:58.3]} 5. e4 {[%clk 0:02:57]} 5...
c5 {[%clk 0:02:51.6]} 6. Nc3 {[%clk 0:02:53.3]} 6... cxd4 {[%clk 0:02:51.9]} 7.
Qxd4 {[%clk 0:02:54.2]} 7... Qxd4 {[%clk 0:02:52.3]} 8. Nxd4 {[%clk 0:02:55.1]}
8... a6 {[%clk 0:02:53.1]} 9. Bxc4 {[%clk 0:02:54.7]} 9... h6 {[%clk 0:02:45.7]}
10. Bd2 {[%clk 0:02:40.8]} 10... Bc5 {[%clk 0:02:38.4]} 11. Nb3 {[%clk
0:02:38.1]} 11... Ba7 {[%clk 0:02:37.4]} 12. f3 {[%clk 0:02:37.7]} 12... Nc6
{[%clk 0:02:34.2]} 13. O-O-O {[%clk 0:02:34.5]} 13... Bd7 {[%clk 0:02:33.5]} 14.
Kb1 {[%clk 0:02:33.8]} 14... Rc8 {[%clk 0:02:29.7]} 15. Be2 {[%clk 0:02:33.4]}
15... O-O {[%clk 0:02:20.4]} 16. Rc1 {[%clk 0:02:16.7]} 16... Ne5 {[%clk
0:02:11.7]} 17. Rhd1 {[%clk 0:02:08.7]} 17... Nc4 {[%clk 0:02:04.1]} 18. Bxc4
{[%clk 0:01:55.1]} 18... Rxc4 {[%clk 0:02:04.1]} 19. Na5 {[%clk 0:01:54.1]}
19... Rcc8 {[%clk 0:01:39.7]} 20. Nxb7 {[%clk 0:01:51.5]} 20... e5 {[%clk
0:01:22.2]} 21. Be1 {[%clk 0:01:31.6]} 21... Bd4 {[%clk 0:01:11.6]} 22. Ne2
{[%clk 0:01:21.6]} 22... Bxb2 {[%clk 0:00:58.6]} 23. Kxb2 {[%clk 0:01:09.8]}
23... Rb8 {[%clk 0:00:57.8]} 24. Rc7 {[%clk 0:01:04.3]} 24... Bc8 {[%clk
0:00:55.8]} 25. Bb4 {[%clk 0:00:58.4]} 25... Bxb7 {[%clk 0:00:27.2]} 26. Bxf8
{[%clk 0:00:57.3]} 26... Kxf8 {[%clk 0:00:20]} 27. Ka3 {[%clk 0:00:56.8]} 27...
a5 {[%clk 0:00:18.1]} 28. Nc3 {[%clk 0:00:52.6]} 28... Ba6 {[%clk 0:00:17.5]}
29. Rc5 {[%clk 0:00:45.4]} 29... Nh5 {[%clk 0:00:13.2]} 30. Rxa5 {[%clk
0:00:37.5]} 30... Bc4 {[%clk 0:00:13.4]} 31. g3 {[%clk 0:00:36.8]} 31... Rc8
{[%clk 0:00:11.5]} 32. Rxe5 {[%clk 0:00:33.8]} 32... Nf6 {[%clk 0:00:11.4]} 33.
Kb4 {[%clk 0:00:33.2]} 33... Be6 {[%clk 0:00:11.3]} 34. Rc5 {[%clk 0:00:28.8]}
34... Rb8+ {[%clk 0:00:09.4]} 35. Rb5 {[%clk 0:00:28.9]} 35... Rc8 {[%clk
0:00:09.2]} 36. Rd4 {[%clk 0:00:28]} 36... Ne8 {[%clk 0:00:08.7]} 37. a4 {[%clk
0:00:24.5]} 37... Nc7 {[%clk 0:00:09.1]} 38. Rb6 {[%clk 0:00:23.7]} 38... Na8
{[%clk 0:00:09.3]} 39. Rbd6 {[%clk 0:00:23]} 39... Ke7 {[%clk 0:00:08.8]} 40.
Nb5 {[%clk 0:00:22.6]} 40... Rc1 {[%clk 0:00:07.3]} 41. Ra6 {[%clk 0:00:20.6]}
41... Nc7 {[%clk 0:00:05.1]} 42. Ra7 {[%clk 0:00:19.7]} 42... Rb1+ {[%clk
0:00:05.4]} 43. Ka5 {[%clk 0:00:19.7]} 43... Kf6 {[%clk 0:00:04.9]} 44. Rxc7
{[%clk 0:00:19.7]} 44... Rh1 {[%clk 0:00:03.2]} 45. f4 {[%clk 0:00:19.4]} 45...
g5 {[%clk 0:00:03.1]} 46. f5 {[%clk 0:00:18.7]} 46... Bb3 {[%clk 0:00:03.6]} 47.
Rc5 {[%clk 0:00:18.5]} 47... Ra1 {[%clk 0:00:02.6]} 48. Rd6+ {[%clk 0:00:17.9]}
48... Ke7 {[%clk 0:00:02.2]} 49. f6+ {[%clk 0:00:17.1]} 1-0

[Event "Early-Titled-Tuesday-Blitz-September-12-2023"]
[Site "Chess.com"]
[Date "2023.09.12"]
[Round "3"]
[White "itsdsyr"]
[Black "ChessTankMan"]
[Result "1-0"]
[WhiteElo "2215"]
[BlackElo "2519"]
[TimeControl "180+1"]
[EndTime "8:28:38 PDT"]
[Termination "itsdsyr won by checkmate"]

1. d4 {[%clk 0:02:56.4]} 1... Nf6 {[%clk 0:02:57.8]} 2. c4 {[%clk 0:02:51.3]}
2... e6 {[%clk 0:02:57.5]} 3. Nf3 {[%clk 0:02:50.8]} 3... d5 {[%clk 0:02:55.9]}
4. Nc3 {[%clk 0:02:17.9]} 4... c6 {[%clk 0:02:50.3]} 5. cxd5 {[%clk 0:02:12.7]}
5... exd5 {[%clk 0:02:47.2]} 6. Bg5 {[%clk 0:02:12.5]} 6... h6 {[%clk
0:02:44.5]} 7. Bh4 {[%clk 0:02:06.1]} 7... Qb6 {[%clk 0:02:14.5]} 8. Qb3 {[%clk
0:01:34]} 8... Ne4 {[%clk 0:01:39.9]} 9. e3 {[%clk 0:01:16.7]} 9... Bb4 {[%clk
0:01:31.2]} 10. Rc1 {[%clk 0:01:11.8]} 10... Bf5 {[%clk 0:01:18.7]} 11. Be2
{[%clk 0:00:54.9]} 11... Nd7 {[%clk 0:01:03.1]} 12. O-O {[%clk 0:00:52.6]} 12...
Bd6 {[%clk 0:00:42.8]} 13. Bg3 {[%clk 0:00:38.1]} 13... Be7 {[%clk 0:00:20.5]}
14. Rfd1 {[%clk 0:00:29.6]} 14... O-O {[%clk 0:00:19.4]} 15. Ne5 {[%clk
0:00:27.2]} 15... Nxg3 {[%clk 0:00:11.4]} 16. hxg3 {[%clk 0:00:24.4]} 16... Nxe5
{[%clk 0:00:11.3]} 17. dxe5 {[%clk 0:00:25]} 17... Qxb3 {[%clk 0:00:04.7]} 18.
axb3 {[%clk 0:00:24.4]} 18... Rfe8 {[%clk 0:00:04.7]} 19. f4 {[%clk 0:00:21.1]}
19... Bc5 {[%clk 0:00:04.2]} 20. Kf2 {[%clk 0:00:19.6]} 20... Bb6 {[%clk
0:00:03.3]} 21. Na4 {[%clk 0:00:19]} 21... Bc7 {[%clk 0:00:01.8]} 22. Bd3 {[%clk
0:00:15.2]} 22... Bxd3 {[%clk 0:00:01.1]} 23. Rxd3 {[%clk 0:00:14.7]} 23... f6
{[%clk 0:00:01.8]} 24. exf6 {[%clk 0:00:13.9]} 24... gxf6 {[%clk 0:00:02.7]} 25.
Nc5 {[%clk 0:00:14.2]} 25... Rab8 {[%clk 0:00:02.4]} 26. Nd7 {[%clk 0:00:13.3]}
26... Kf7 {[%clk 0:00:02.6]} 27. Nxb8 {[%clk 0:00:13]} 27... Rxb8 {[%clk
0:00:03.5]} 28. e4 {[%clk 0:00:11.6]} 28... Bb6+ {[%clk 0:00:03.7]} 29. Kf3
{[%clk 0:00:11.6]} 29... dxe4+ {[%clk 0:00:04.1]} 30. Kxe4 {[%clk 0:00:12.1]}
30... Re8+ {[%clk 0:00:04.3]} 31. Kf3 {[%clk 0:00:12.7]} 31... f5 {[%clk
0:00:04.5]} 32. Rcd1 {[%clk 0:00:12]} 32... Re4 {[%clk 0:00:03.7]} 33. Rd7+
{[%clk 0:00:11.3]} 33... Ke8 {[%clk 0:00:03.5]} 34. R1d3 {[%clk 0:00:10.2]}
34... Re1 {[%clk 0:00:03]} 35. Rh7 {[%clk 0:00:04.4]} 35... Rf1+ {[%clk
0:00:03.1]} 36. Ke2 {[%clk 0:00:04.3]} 36... Rf2+ {[%clk 0:00:03.7]} 37. Kd1
{[%clk 0:00:04.9]} 37... Rxg2 {[%clk 0:00:04]} 38. Rdd7 {[%clk 0:00:05]} 38...
Rxb2 {[%clk 0:00:02.4]} 39. Rxb7 {[%clk 0:00:04.4]} 39... Rb1+ {[%clk
0:00:02.6]} 40. Kc2 {[%clk 0:00:04]} 40... Rg1 {[%clk 0:00:02.1]} 41. Rb8+
{[%clk 0:00:04.2]} 41... Bd8 {[%clk 0:00:02.2]} 42. Rh8+ {[%clk 0:00:04.8]}
42... Ke7 {[%clk 0:00:02.8]} 43. Rhxd8 {[%clk 0:00:05.4]} 43... Rg2+ {[%clk
0:00:03.5]} 44. Kc3 {[%clk 0:00:04.9]} 44... Rxg3+ {[%clk 0:00:04.1]} 45. Kc4
{[%clk 0:00:05.5]} 45... Rf3 {[%clk 0:00:04.1]} 46. Rdc8 {[%clk 0:00:05.9]}
46... Rxf4+ {[%clk 0:00:04.6]} 47. Kc5 {[%clk 0:00:06]} 47... h5 {[%clk
0:00:04.8]} 48. Rb7+ {[%clk 0:00:05.8]} 48... Ke6 {[%clk 0:00:04.7]} 49. Rxc6+
{[%clk 0:00:06.3]} 49... Ke5 {[%clk 0:00:04.9]} 50. Re7# {[%clk 0:00:06.4]} 1-0

[Event "Early-Titled-Tuesday-Blitz-September-12-2023"]
[Site "Chess.com"]
[Date "2023.09.12"]
[Round "3"]
[White "FGHSMN"]
[Black "DefiantChair"]
[Result "1-0"]
[WhiteElo "2902"]
[BlackElo "2681"]
[TimeControl "180+1"]
[EndTime "8:28:39 PDT"]
[Termination "FGHSMN won by resignation"]

1. e4 {[%clk 0:02:59.9]} 1... c5 {[%clk 0:02:58.4]} 2. Nf3 {[%clk 0:03:00.3]}
2... d6 {[%clk 0:02:57.9]} 3. d4 {[%clk 0:03:00.8]} 3... cxd4 {[%clk 0:02:58.8]}
4. Nxd4 {[%clk 0:03:01.7]} 4... Nf6 {[%clk 0:02:59.2]} 5. Nc3 {[%clk 0:03:02.2]}
5... a6 {[%clk 0:02:59.8]} 6. h3 {[%clk 0:03:02.2]} 6... e5 {[%clk 0:02:59.1]}
7. Nf3 {[%clk 0:03:02.3]} 7... h6 {[%clk 0:02:45.8]} 8. Bc4 {[%clk 0:03:00.6]}
8... Be7 {[%clk 0:02:45.6]} 9. Be3 {[%clk 0:02:58.9]} 9... O-O {[%clk
0:02:46.2]} 10. O-O {[%clk 0:02:54.5]} 10... Be6 {[%clk 0:02:46.5]} 11. Bb3
{[%clk 0:02:53.5]} 11... Nc6 {[%clk 0:02:46.3]} 12. Re1 {[%clk 0:02:43.7]} 12...
b5 {[%clk 0:02:44.7]} 13. Nd5 {[%clk 0:02:35.2]} 13... Rc8 {[%clk 0:02:19.7]}
14. a4 {[%clk 0:02:21.9]} 14... Bxd5 {[%clk 0:02:00]} 15. Bxd5 {[%clk
0:02:17.5]} 15... Nb4 {[%clk 0:01:42.4]} 16. Bb3 {[%clk 0:02:12]} 16... Nxe4
{[%clk 0:01:41.8]} 17. c3 {[%clk 0:02:11.2]} 17... Nc6 {[%clk 0:01:34.1]} 18.
axb5 {[%clk 0:02:10.9]} 18... axb5 {[%clk 0:01:35]} 19. Bxh6 {[%clk 0:02:04.8]}
19... Nxf2 {[%clk 0:01:25.9]} 20. Kxf2 {[%clk 0:02:05.7]} 20... gxh6 {[%clk
0:01:26]} 21. Qd3 {[%clk 0:01:47.1]} 21... Qb6+ {[%clk 0:01:18.9]} 22. Kf1
{[%clk 0:01:44.6]} 22... Kg7 {[%clk 0:01:17.6]} 23. Qf5 {[%clk 0:01:42.9]} 23...
Na5 {[%clk 0:00:25.9]} 24. Bc2 {[%clk 0:01:40.4]} 24... Rg8 {[%clk 0:00:24.3]}
25. Re4 {[%clk 0:01:34.8]} 25... Rc4 {[%clk 0:00:20.7]} 26. Rxc4 {[%clk
0:01:03.3]} 26... Nxc4 {[%clk 0:00:21.6]} 27. Qh7+ {[%clk 0:00:59]} 27... Kf8
{[%clk 0:00:21.7]} 28. Qxh6+ {[%clk 0:00:54]} 28... Ke8 {[%clk 0:00:21.8]} 29.
Ra8+ {[%clk 0:00:49.5]} 29... Bd8 {[%clk 0:00:21.5]} 30. Be4 {[%clk 0:00:32.3]}
30... Ne3+ {[%clk 0:00:20.8]} 31. Ke2 {[%clk 0:00:30.6]} 31... Rxg2+ {[%clk
0:00:19.9]} 32. Kd3 {[%clk 0:00:30.6]} 32... Nc4 {[%clk 0:00:14.6]} 33. Qh8+
{[%clk 0:00:23.7]} 33... Ke7 {[%clk 0:00:14.9]} 34. Qh4+ {[%clk 0:00:22.8]}
34... Ke8 {[%clk 0:00:13.8]} 35. Rxd8+ {[%clk 0:00:20.6]} 35... Qxd8 {[%clk
0:00:12.9]} 36. Bc6+ {[%clk 0:00:21.5]} 36... Qd7 {[%clk 0:00:09.9]} 37. Bxd7+
{[%clk 0:00:20.2]} 37... Kxd7 {[%clk 0:00:10.8]} 38. b3 {[%clk 0:00:18.8]} 38...
Nb2+ {[%clk 0:00:11.1]} 39. Ke4 {[%clk 0:00:18.6]} 39... Ke6 {[%clk 0:00:10.4]}
40. Qh6+ {[%clk 0:00:16.9]} 40... f6 {[%clk 0:00:10.6]} 41. Nh4 {[%clk
0:00:16.8]} 41... d5+ {[%clk 0:00:07.3]} 42. Kf3 {[%clk 0:00:17.4]} 42... Rc2
{[%clk 0:00:07.6]} 43. Qe3 {[%clk 0:00:16.4]} 43... d4 {[%clk 0:00:05.3]} 44.
cxd4 {[%clk 0:00:16]} 44... Nd1 {[%clk 0:00:05]} 45. d5+ {[%clk 0:00:16.5]}
45... Kd6 {[%clk 0:00:04.9]} 46. Qb6+ {[%clk 0:00:16.5]} 46... Kxd5 {[%clk
0:00:05.6]} 47. Qxb5+ {[%clk 0:00:17]} 47... Kd4 {[%clk 0:00:06]} 48. Qd7+
{[%clk 0:00:17.2]} 48... Kc3 {[%clk 0:00:06.6]} 49. Qxd1 {[%clk 0:00:18.1]}
49... Rd2 {[%clk 0:00:06.4]} 50. Qxd2+ {[%clk 0:00:17]} 50... Kxd2 {[%clk
0:00:07.3]} 51. Nf5 {[%clk 0:00:17.6]} 1-0